bitfinex-derivatives/quotes_ETHF0:USTF0_20251204
["timestamp","ask_amount","ask_price","bid_price","bid_amount"]
[1764880165037,15.95160376,3121.6,3121.5,0.702]
[1764880165639,15.95160376,3121.6,3121.0,2.00688889]
[1764880167634,15.95160376,3121.6,3121.0,0.70878889]
[1764880167834,3.2078,3121.2,3120.6,3.2078]
[1764880168035,12.74,3121.1,3120.6,3.2078]
[1764880168434,3.2078,3120.7,3120.5,0.702]
[1764880168637,11.054,3120.6,3120.5,0.702]
[1764880169140,11.054,3120.6,3120.5,0.70446041]
[1764880170036,11.054,3120.6,3120.0,0.702]
[1764880171042,11.054,3120.6,3120.0,0.70280932]
[1764880172041,44.0078,3120.7,3120.0,2.00090932]
[1764880172345,12.741,3120.6,3120.5,0.702]
[1764880173145,12.741,3120.6,3120.0,2.00090932]
[1764880173351,12.741,3120.6,3120.0,0.70280932]
[1764880173637,12.741,3120.6,3120.0,2.00090932]
[1764880174044,12.741,3120.6,3120.0,0.70280932]
[1764880175245,0.16018,3120.5,3120.0,0.00080932]
[1764880175446,3.2078,3120.1,3119.5,1.8478]
[1764880175746,12.742,3120.0,3119.5,1.8478]
[1764880175944,12.742,3120.0,3119.5,0.702]
[1764880176646,12.74526037,3120.0,3119.5,0.702]
[1764880176836,40.8,3119.9,3119.5,0.702]
[1764880177034,3.2078,3119.7,3119.0,0.702]
[1764880177239,3.2078,3119.2,3119.0,0.702]
[1764880177436,12.743,3119.1,3119.0,0.702]
[1764880177639,12.743,3119.1,3118.5,3.9098]
[1764880177841,12.743,3119.1,3118.5,5.0556]
[1764880178249,40.8,3119.0,3118.5,5.0556]
[1764880178446,40.8,3119.0,3118.5,3.9098]
[1764880178848,3.2078,3118.6,3118.5,0.702]
[1764880179049,15.9518,3118.6,3118.0,4.9894]
[1764880179454,3.2078,3118.2,3118.0,0.6358]
[1764880179757,12.744,3118.1,3118.0,0.6358]
[1764880180648,18.744,3118.1,3117.1,3.2078]
[1764880180949,3.2078,3117.4,3117.0,0.6358]
[1764880181249,52.6,3117.3,3117.0,0.63854821]
[1764880182349,40.8,3117.3,3117.0,0.63854821]
[1764880182548,3.21037202,3117.4,3117.3,2.2869]
[1764880182748,15.95737202,3117.4,3117.0,0.79890821]
[1764880183151,40.8,3117.3,3117.0,0.63854821]
[1764880184243,40.8,3117.3,3117.2,1.0795]
[1764880184550,40.8,3117.3,3117.2,2.0906]
[1764880184752,53.548,3117.3,3117.2,2.0906]
[1764880184950,53.549,3117.3,3117.2,2.0906]
[1764880185149,53.549,3117.3,3117.2,1.0795]
[1764880185349,53.549,3117.3,3117.0,0.63854821]
[1764880186451,53.549,3117.3,3117.0,0.00274821]
[1764880191753,53.549,3117.3,3117.0,0.61074821]
[1764880191952,12.754,3117.2,3117.0,1.69024821]
[1764880192350,12.754,3117.2,3117.0,0.61074821]
[1764880192550,40.8,3117.1,3117.0,0.61074821]
[1764880193248,53.555,3117.1,3117.0,0.61074821]
[1764880193755,53.555,3117.1,3117.0,1.69024821]
[1764880193959,53.555,3117.1,3117.0,2.70134821]
[1764880195964,53.555,3117.1,3117.0,0.61074821]
[1764880200465,0.16038,3116.6,3116.0,0.6358]
[1764880200660,3.2078,3116.1,3116.0,0.6358]
[1764880200854,15.9648,3116.1,3116.0,0.6358]
[1764880201060,56.7648,3116.1,3115.5,0.6358]
[1764880201359,3.2078,3115.6,3115.5,0.6358]
[1764880201559,15.9648,3115.6,3115.5,0.6358]
[1764880201758,15.9648,3115.6,3115.5,2.7264]
[1764880202060,44.0078,3116.1,3116.0,2.6986]
[1764880202457,56.7648,3116.1,3116.0,2.6986]
[1764880202763,56.7648,3116.1,3116.0,1.6875]
[1764880202959,56.7648,3116.1,3115.5,0.6358]
[1764880203160,3.2078,3115.6,3115.0,0.608]
[1764880203358,12.758,3115.5,3115.0,0.608]
[1764880204460,3.2078,3115.1,3115.0,0.608]
[1764880204662,17.07013722,3115.1,3114.0,0.608]
[1764880204859,3.2078,3114.6,3114.0,0.608]
[1764880205168,56.3588,3114.6,3114.0,0.608]
[1764880205361,56.7668,3114.6,3114.0,0.608]
[1764880205557,3.2078,3114.1,3114.0,1.7119]
[1764880205762,15.9668,3114.1,3114.0,2.7915]
[1764880206263,15.9668,3114.1,3114.0,0.608]
[1764880206858,15.9668,3114.1,3114.0,2.7915]
[1764880207067,15.9678,3114.1,3114.0,2.7915]
[1764880207268,3.2078,3114.1,3114.0,2.7915]
[1764880207470,15.9678,3114.1,3114.0,2.7915]
[1764880208468,0.00481201,3114.9,3114.8,2.1835]
[1764880208975,6.05981201,3114.9,3114.8,2.1835]
[1764880209166,0.00481201,3114.9,3114.8,8.1835]
[1764880209366,2.78981201,3114.9,3114.8,8.1835]
[1764880209967,0.00481201,3114.9,3114.8,8.1835]
[1764880210167,4.01809877,3114.9,3114.8,8.1835]
[1764880210480,0.00254588,3115.1,3115.0,2.8215]
[1764880210663,12.76454588,3115.1,3115.0,2.8215]
[1764880211076,3.2078,3115.4,3115.0,2.8215]
[1764880211077,3.21261201,3115.4,3115.3,2.1835]
[1764880211374,15.97561201,3115.4,3115.3,2.1835]
[1764880211576,12.76781201,3115.4,3115.3,2.1835]
[1764880211776,0.00481201,3115.4,3115.3,2.1835]
[1764880211977,12.76781201,3115.4,3115.3,2.1835]
[1764880212179,12.77131723,3115.4,3115.3,2.18604588]
[1764880212678,0.00831723,3115.4,3115.3,2.18604588]
[1764880212878,12.77131723,3115.4,3115.3,2.18604588]
[1764880213177,13.81511723,3115.4,3115.3,1.10644588]
[1764880213380,14.93381723,3115.4,3115.3,0.00254588]
[1764880213772,0.00831723,3115.4,3115.3,2.18604588]
[1764880213973,12.77131723,3115.4,3115.3,2.18604588]
[1764880214178,14.93381723,3115.4,3115.3,0.00254588]
[1764880214876,18.14161723,3115.4,3115.3,0.00254588]
[1764880215074,15.97911723,3115.4,3115.3,2.18604588]
[1764880216787,12.77131723,3115.4,3115.3,2.18604588]
[1764880220096,0.00831723,3115.4,3115.3,2.34649588]
[1764880220395,3.2078,3115.8,3115.7,2.1835]
[1764880220593,6.3698,3115.8,3115.7,2.1835]
[1764880221404,7.41673111,3115.8,3115.7,2.1835]
[1764880222103,6.37293111,3115.8,3115.7,2.1835]
[1764880222298,7.41673111,3115.8,3115.7,2.1835]
[1764880222798,4.25473111,3115.8,3115.7,2.1835]
[1764880223002,17.01773111,3115.8,3115.7,2.1835]
[1764880223503,15.97393111,3115.8,3115.7,2.1835]
[1764880223701,17.01773111,3115.8,3115.7,2.1835]
[1764880224303,15.97393111,3115.8,3115.7,2.1835]
[1764880224694,3.2078,3116.7,3116.6,1.1039]
[1764880225001,15.5233,3116.7,3116.6,1.1039]
[1764880225201,15.5233,3116.7,3116.1,0.1604]
[1764880225202,56.3233,3116.7,3116.1,0.1604]
[1764880225803,56.33111539,3116.7,3116.1,0.16521201]
[1764880226000,56.33111539,3116.7,3116.6,1.1039]
[1764880226305,57.82241539,3116.7,3116.6,2.1835]
[1764880226508,53.57081539,3116.7,3116.6,2.1835]
[1764880227002,0.00781539,3116.7,3116.6,2.1835]
[1764880227402,0.00781539,3116.7,3116.6,2.34388]
[1764880227810,3.2078,3117.2,3117.1,2.1835]
[1764880228014,3.404,3117.2,3117.1,2.1835]
[1764880228311,3.2078,3117.6,3117.5,2.8215]
[1764880228505,15.9698,3117.6,3117.5,2.8215]
[1764880228707,4.2516,3117.6,3117.5,2.8215]
[1764880228908,17.01521441,3117.6,3117.5,2.82498277]
[1764880229104,0.00261441,3117.6,3117.5,2.82498277]
[1764880230012,40.8,3118.4,3118.3,1.1039]
[1764880230319,40.8,3118.4,3118.0,0.638]
[1764880230608,1.0438,3118.1,3118.0,1.7419]
[1764880230805,1.0438,3118.1,3118.0,2.8215]
[1764880231004,0.00307228,3118.1,3118.0,2.8215]
[1764880235500,0.00481201,3118.4,3118.3,2.0903]
[1764880236605,0.00880191,3118.4,3118.3,2.0903]
[1764880236808,1.91e-06,3118.4,3118.3,2.25059]
[1764880237014,3.2078,3118.9,3118.8,2.0903]
[1764880237206,5.2617,3118.9,3118.8,2.0903]
[1764880237404,5.2617,3118.9,3118.8,1.038]
[1764880238205,4.26493843,3118.9,3118.8,2.0903]
[1764880238801,3.21043843,3118.9,3118.8,2.0903]
[1764880240309,4.26493843,3118.9,3118.8,2.0903]
[1764880240511,1.0545,3119.5,3119.4,2.0903]
[1764880241506,0.00346282,3119.5,3119.4,2.0903]
[1764880242614,1.05796282,3119.5,3119.4,2.0903]
[1764880242811,2.0539,3119.3,3119.2,4.2458]
[1764880243319,2.0539,3119.3,3119.2,3.2078]
[1764880244517,2.0539,3119.3,3119.2,4.2458]
[1764880246317,2.0539,3119.3,3118.9,0.16026]
[1764880246719,2.0539,3119.3,3119.2,1.038]
[1764880246918,3.76626282,3119.5,3119.4,1.4998]
[1764880247222,16.51626282,3119.5,3119.4,1.4998]
[1764880248218,1.518,3119.3,3119.2,6.1732]
[1764880248419,2.9401,3119.2,3119.1,1.66005]
[1764880248613,1.518,3118.9,3118.8,6.1732]
[1764880249317,13.57616282,3119.5,3118.8,6.1732]
[1764880252221,13.57616282,3119.5,3119.0,0.16025]
[1764880252720,1.518,3119.1,3119.0,3.12565]
[1764880253020,2.9401,3118.9,3118.8,3.2078]
[1764880253407,2.9401,3118.9,3118.8,4.7076]
[1764880253614,2.9401,3118.9,3118.8,3.2078]
[1764880254018,2.9401,3118.4,3118.3,3.2078]
[1764880254620,2.9401,3118.4,3118.3,6.1732]
[1764880254917,1.518,3118.4,3118.3,6.1732]
[1764880255120,2.9401,3118.4,3118.3,6.1732]
[1764880255305,2.9401,3118.4,3118.0,0.16031]
[1764880255509,1.518,3118.1,3118.0,3.12571]
[1764880255814,0.8468,3118.5,3118.0,3.12571]
[1764880256518,3.7869,3118.5,3118.4,1.4998]
[1764880256718,3.7869,3118.5,3118.0,0.16031]
[1764880257725,2.9401,3118.1,3118.0,3.12571]
[1764880257923,1.518,3118.1,3118.0,3.12571]
[1764880259116,0.8468,3118.5,3118.0,3.12571]
[1764880259316,3.70128229,3118.4,3118.3,1.4998]
[1764880260120,3.2078,3118.6,3118.5,2.9654]
[1764880260319,3.2078,3118.6,3118.5,4.00298]
[1764880260516,6.1479,3119.2,3119.1,2.9654]
[1764880260820,4.7258,3119.2,3119.1,2.9654]
[1764880261022,3.2078,3119.2,3119.1,3.12565]
[1764880261226,0.00346282,3119.5,3119.4,2.9654]
[1764880261415,0.00346282,3119.5,3119.4,3.12564]
[1764880263228,0.00346282,3119.5,3118.5,0.8773]
[1764880263229,2.9401,3119.4,3118.8,3.36807]
[1764880263424,15.6881,3119.4,3118.8,3.36807]
[1764880263722,1.518,3118.9,3118.8,6.33347]
[1764880264117,15.6929,3119.4,3119.3,1.433]
[1764880264320,16.45434518,3119.4,3118.8,3.36807]
[1764880264625,2.9449,3118.9,3118.8,3.2078]
[1764880266720,2.35246282,3119.5,3119.4,1.433]
[1764880266924,17.30429541,3119.5,3119.0,1.059]
[1764880267112,3.70703259,3119.4,3119.3,1.433]
[1764880267311,2.9449,3119.4,3119.3,1.433]
[1764880268122,1.50566282,3119.5,3119.4,2.8236]
[1764880268525,0.00346282,3119.5,3119.4,2.98384]
[1764880268716,40.8,3120.2,3120.1,2.8236]
[1764880268915,0.76285927,3120.2,3120.1,2.8236]
[1764880269115,15.9548,3120.4,3120.2,2.8236]
[1764880269312,0.76274431,3120.3,3119.9,2.98381]
[1764880269916,0.765571,3120.3,3119.9,2.98711949]
[1764880270519,3.9956,3120.0,3119.9,0.16351949]
[1764880271524,0.00282669,3120.3,3120.2,2.9838]
[1764880271729,4.573,3121.4,3120.5,0.8628]
[1764880272021,40.8,3121.3,3120.8,3.2078]
[1764880272925,40.8032615,3121.3,3120.8,3.2078]
[1764880273225,0.0032615,3121.3,3120.8,3.2078]
[1764880273532,2.9449,3120.9,3120.8,3.2078]
[1764880273725,12.745,3121.2,3120.8,6.0314]
[1764880274518,1.5022,3120.8,3120.4,3.2078]
[1764880274721,1.0507,3121.0,3120.4,3.2078]
[1764880274722,3.9956,3120.5,3120.4,3.2078]
[1764880275021,16.7396,3120.5,3120.4,3.2078]
[1764880275226,57.5396,3120.5,3120.4,3.2078]
[1764880277522,3.9956,3120.0,3119.8,3.37282201]
[1764880278128,1.5022,3120.0,3119.9,1.43630949]
[1764880278725,1.5022,3120.0,3119.9,0.00330949]
[1764880279225,1.5022,3120.1,3120.0,0.16021]
[1764880279535,15.6879,3120.1,3120.0,0.16021]
[1764880280020,1.5022,3120.0,3119.9,0.00330949]
[1764880280424,3.9956,3120.0,3119.9,0.00330949]
[1764880282032,2.5529,3120.0,3119.9,1.43630949]
[1764880282232,7.2034,3120.0,3119.9,0.00330949]
[1764880282529,2.9449,3119.9,3118.9,3.2078]
[1764880283324,1.5022,3119.2,3119.1,1.43781201]
[1764880284533,1.5022,3119.2,3119.1,2.82841201]
[1764880286431,0.00481201,3119.7,3119.6,2.8236]
[1764880288433,2.94971201,3119.7,3119.6,1.433]
[1764880289731,3.9956,3119.5,3119.4,3.2078]
[1764880289935,1.5022,3119.2,3119.1,2.82841201]
[1764880290537,2.9449,3119.2,3119.1,1.43781201]
[1764880290840,1.5022,3119.2,3119.1,1.43781201]
[1764880291036,1.5022,3119.2,3119.1,2.82841201]
[1764880291537,2.9449,3119.2,3119.1,0.00481201]
[1764880292735,13.2739,3119.2,3119.1,0.00481201]
[1764880293530,1.50701201,3119.7,3119.6,1.433]
[1764880293730,0.00481201,3119.7,3119.6,2.8236]
[1764880294132,3.2078,3120.0,3119.9,3.347]
[1764880295639,6.6064,3120.4,3119.6,0.16023]
[1764880296632,6.6064,3120.4,3119.6,2.44902203]
[1764880296945,6.6064,3120.4,3120.3,1.7335]
[1764880297737,4.8391,3120.4,3120.3,3.347]
[1764880298444,4.4493,3121.0,3120.9,1.7335]
[1764880298840,2.682,3121.0,3120.9,1.7335]
[1764880299149,2.682,3121.0,3120.9,3.347]
[1764880299349,4.4493,3121.0,3120.9,1.7335]
[1764880301646,0.0032615,3121.3,3121.2,3.50714]
[1764880301847,4.8391,3121.9,3121.8,3.347]
[1764880302149,6.6064,3121.9,3121.3,0.16014]
[1764880302349,3.2078,3121.9,3121.8,3.347]
[1764880302746,6.64710614,3121.9,3121.4,0.16013]
[1764880303046,3.43930614,3121.9,3121.8,3.2078]
[1764880304050,3.43930614,3121.9,3121.8,4.9657]
[1764880304447,3.43930614,3121.9,3121.8,3.2078]
[1764880305246,16.17730614,3121.9,3121.8,3.2078]
[1764880308252,16.17730614,3121.9,3121.4,0.16013]
[1764880308253,3.5461,3121.3,3121.2,6.77442016]
[1764880308445,1.0459,3121.5,3121.2,6.77442016]
[1764880308646,4.592,3121.5,3121.4,1.7579]
[1764880309153,15.94950614,3121.9,3121.4,3.5627]
[1764880310755,1.7418,3121.5,3121.4,3.5627]
[1764880311153,4.592,3121.5,3121.2,3.21172016]
[1764880311356,1.7418,3121.3,3121.2,6.77442016]
[1764880313754,3.5461,3121.3,3121.2,3.21172016]
[1764880313957,16.2801,3121.3,3121.2,3.21172016]
[1764880315755,14.4758,3121.3,3121.2,6.77442016]
[1764880316161,16.2801,3121.3,3121.2,3.21172016]
[1764880317553,16.2801,3121.3,3121.2,0.00392016]
[1764880317951,2.8502,3120.5,3120.4,3.2078]
[1764880318266,3.5461,3121.0,3120.9,3.5627]
[1764880318456,13.453,3121.0,3120.9,3.2078]
[1764880318656,1.7418,3120.8,3120.7,3.72287]
[1764880318959,4.592,3121.5,3121.4,1.7579]
[1764880319161,1.7418,3121.5,3121.4,3.56622056]
[1764880319666,3.5461,3121.5,3121.4,3.56622056]
[1764880319964,4.592,3121.5,3121.4,1.76142056]
[1764880320257,40.80481201,3121.8,3121.4,3.56622056]
[1764880320461,3.55091201,3121.8,3121.7,1.7579]
[1764880320765,16.28491201,3121.8,3121.7,1.7579]
[1764880321261,16.28491201,3121.8,3121.4,0.00352056]
[1764880321564,1.7418,3121.5,3121.4,3.56622056]
[1764880322364,4.592,3121.5,3121.4,0.00352056]
[1764880322662,4.592,3121.5,3121.4,1.76142056]
[1764880322865,0.00481201,3121.8,3121.7,3.5627]
[1764880323163,0.00481201,3121.8,3121.7,6.93062]
[1764880324656,3.2078,3122.8,3122.2,0.16009]
[1764880324858,3.2078,3122.8,3122.2,3.36789]
[1764880325664,3.21047633,3122.8,3122.2,3.36789]
[1764880326365,3.7004,3122.3,3121.8,5.49659203]
[1764880326557,3.7004,3121.6,3121.4,3.21132056]
[1764880326764,17.4561,3121.5,3121.4,0.00352056]
[1764880328661,2.8795,3121.5,3121.4,0.00352056]
[1764880328867,9.3658,3121.9,3121.4,5.00222056]
[1764880330064,5.0636,3121.9,3121.8,1.7909]
[1764880330255,3.2078,3122.4,3121.8,6.97231]
[1764880330566,12.731,3122.3,3121.8,6.97231]
[1764880331162,0.00267633,3122.8,3122.3,3.76449]
[1764880331163,3.21047633,3122.8,3122.3,3.76449]
[1764880331363,3.21047633,3122.8,3121.8,3.2078]
[1764880331364,0.00267633,3122.8,3122.7,6.97227]
[1764880331666,0.00267633,3122.8,3122.7,9.51237545]
[1764880332266,0.00267633,3122.8,3122.7,7.22358342]
[1764880332672,3.2078,3124.2,3123.9,3.6044]
[1764880333365,3.2078,3124.2,3123.7,5.00350422]
[1764880333366,1.8558,3123.8,3123.7,5.00350422]
[1764880333870,0.00331527,3123.8,3123.7,6.81992547]
[1764880335363,1.85911527,3123.8,3123.7,5.00642547]
[1764880335969,0.00331527,3123.8,3123.7,6.81992547]
[1764880338266,0.00331527,3123.8,3123.7,6.97994547]
[1764880341476,4.7241,3125.0,3124.9,1.7909]
[1764880341773,4.2315,3126.0,3125.4,3.6044]
[1764880341970,4.2315,3126.0,3125.4,0.00480422]
[1764880342176,4.7241,3125.5,3125.4,0.00480422]
[1764880342676,1.8558,3124.4,3124.3,4.9987]
[1764880342875,3.7004,3124.4,3124.3,4.9987]
[1764880343067,3.7004,3124.4,3124.3,3.2078]
[1764880344682,3.7004,3124.1,3124.0,0.00480422]
[1764880345677,3.7004,3124.1,3124.0,1.79570422]
[1764880346269,3.7004,3124.1,3124.0,0.00480422]
[1764880347868,2.8795,3124.5,3124.4,1.7909]
[1764880348071,4.7241,3124.5,3124.4,4.9987]
[1764880348682,4.7241,3124.5,3124.4,3.2078]
[1764880348880,4.7241,3124.5,3124.1,0.15999]
[1764880349081,1.8558,3124.2,3124.1,1.95089]
[1764880349582,3.7004,3124.2,3124.1,0.15999]
[1764880349877,1.0237,3124.5,3124.1,3.76439]
[1764880350080,4.7241,3124.5,3124.4,1.7909]
[1764880350276,2.8795,3124.5,3124.4,1.7909]
[1764880350486,1.8558,3124.5,3124.4,3.6044]
[1764880351573,3.7004,3124.5,3124.4,1.7909]
[1764880351878,3.70517827,3124.7,3124.6,1.7909]
[1764880352370,0.00477827,3124.7,3124.6,3.6044]
[1764880353382,0.00477827,3124.7,3124.6,3.76437]
[1764880355084,3.53047827,3124.7,3124.6,0.15997]
[1764880355981,3.53047827,3124.7,3124.6,3.47977]
[1764880355982,0.00477827,3124.7,3124.6,3.47977]
[1764880356481,3.25617827,3124.7,3124.6,1.86897]
[1764880356876,1.58627827,3124.7,3124.6,3.47977]
[1764880357283,0.00477827,3124.7,3124.6,3.47977]
[1764880361183,1.02595918,3125.5,3124.8,0.15996]
[1764880361391,3.2514,3125.4,3124.9,3.2078]
[1764880361686,1.5815,3125.0,3124.9,6.5276]
[1764880362486,4.148,3125.0,3124.9,4.9168]
[1764880363181,2.4781,3125.0,3124.9,6.5276]
[1764880364300,1.5815,3125.0,3124.9,6.5276]
[1764880364503,3.9105,3125.0,3124.9,3.2078]
[1764880364693,3.9105,3125.0,3124.9,4.6077]
[1764880365195,1.02595918,3125.5,3124.9,6.1396]
[1764880365498,3.73675918,3125.5,3125.4,1.3999]
[1764880365690,1.4055,3125.3,3125.2,3.09174]
[1764880366904,3.7345,3125.0,3124.9,4.6077]
[1764880367198,3.73675918,3125.5,3125.1,0.15994]
[1764880367402,3.73675918,3125.5,3125.4,2.9318]
[1764880367901,2.25295918,3125.5,3125.4,2.9318]
[1764880369091,0.00225918,3125.5,3125.4,6.29953]
[1764880369299,1.4055,3126.3,3126.2,2.9318]
[1764880369497,1.4055,3126.1,3126.0,6.2995]
[1764880370415,1.40895371,3126.1,3126.0,6.30185673]
[1764880370704,2.89275371,3126.1,3126.0,3.37005673]
[1764880370901,2.89275371,3126.1,3126.0,0.00235673]
[1764880372712,8.89275371,3126.1,3125.9,0.00480422]
[1764880372897,3.7345,3126.0,3125.9,0.00480422]
[1764880373402,16.4485,3126.0,3125.9,0.00480422]
[1764880373802,16.4485,3126.0,3125.9,0.00882011]
[1764880374000,2.8893,3125.6,3125.5,3.2078]
[1764880374199,2.8893,3125.2,3125.1,4.6077]
[1764880374802,15.6033,3125.2,3125.1,3.2078]
[1764880375110,2.8893,3125.2,3125.1,3.21170432]
[1764880375302,1.4055,3125.2,3125.1,6.14350432]
[1764880377305,2.8893,3125.2,3125.1,6.14350432]
[1764880377612,2.8893,3125.2,3125.1,4.61160432]
[1764880377910,1.4055,3125.2,3125.1,6.14350432]
[1764880378311,12.713,3125.4,3125.1,4.74360432]
[1764880378515,14.1185,3125.4,3125.3,2.9318]
[1764880378808,1.4055,3125.4,3125.3,2.9318]
[1764880379001,0.00480421,3125.5,3125.4,2.9318]
[1764880380909,0.00345371,3126.1,3126.0,2.9318]
[1764880381115,0.00345371,3126.1,3126.0,6.1396]
[1764880381615,0.00345371,3126.1,3126.0,7.1605]
[1764880381809,2.89275371,3126.1,3126.0,4.7676]
[1764880382312,0.00345371,3126.1,3126.0,6.2995]
[1764880382511,1.40895371,3126.1,3126.0,6.2995]
[1764880382711,2.89275371,3126.1,3126.0,4.7676]
[1764880384211,2.89275371,3126.1,3126.0,3.2078]
[1764880384517,2.89275371,3126.1,3125.2,6.0126]
[1764880384518,0.835,3126.0,3125.2,6.0126]
[1764880384718,2.8639,3125.3,3125.2,3.2078]
[1764880385918,15.5759,3125.3,3125.2,3.2078]
[1764880386112,2.8639,3125.3,3125.2,3.2078]
[1764880386315,15.5759,3125.3,3125.2,3.2078]
[1764880388715,2.8639,3125.3,3125.2,4.6072]
[1764880388911,1.4397,3125.3,3125.2,4.6072]
[1764880389112,2.8639,3125.3,3125.2,4.6072]
[1764880389321,2.8639,3125.2,3125.1,0.00390432]
[1764880390416,13.547,3125.5,3125.1,2.80870432]
[1764880390913,1.4397,3125.2,3125.1,2.80870432]
[1764880391118,3.6989,3125.5,3125.4,1.3994]
[1764880392319,3.2078,3125.7,3125.1,0.00390432]
[1764880392514,6.0717,3125.7,3125.6,1.3994]
[1764880394414,4.6475,3125.7,3125.6,2.8048]
[1764880395114,6.0717,3125.7,3125.6,1.3994]
[1764880395523,6.0717,3125.7,3125.6,2.8048]
[1764880395820,6.0717,3125.7,3125.6,1.3994]
[1764880396615,2.8639,3125.6,3125.5,0.15992]
[1764880396923,2.8639,3125.6,3125.2,3.2078]
[1764880396924,2.8639,3125.2,3125.1,0.00390432]
[1764880397113,0.835,3125.5,3125.4,1.3994]
[1764880397114,3.6989,3125.5,3125.4,1.3994]
[1764880397317,16.4109,3125.5,3125.4,1.3994]
[1764880397516,3.6989,3125.5,3125.4,2.96473]
[1764880397718,2.2747,3125.5,3125.4,2.96473]
[1764880398019,6.0717,3125.7,3125.6,2.8048]
[1764880398525,0.8452,3127.0,3126.8,0.15985]
[1764880398826,2.8639,3127.3,3127.2,0.15984]
[1764880399023,1.4242,3126.9,3126.8,3.2078]
[1764880399218,2.8639,3126.9,3126.8,3.2078]
[1764880399726,2.86615885,3126.9,3126.8,3.2078]
[1764880401930,1.44195885,3126.9,3126.8,3.2078]
[1764880402223,1.44195885,3126.9,3126.8,3.36766]
[1764880402620,0.00225885,3126.9,3126.8,3.36766]
[1764880402818,2.86615885,3126.9,3126.8,3.36766]
[1764880404124,1.44195885,3126.9,3126.8,3.36766]
[1764880404330,0.00225885,3126.9,3126.8,3.36766]
[1764880405525,0.835,3127.5,3126.9,2.4578753]
[1764880405724,3.255,3128.3,3127.3,3.2078]
[1764880406021,41.635,3128.0,3127.3,3.2078]
[1764880406222,0.835,3127.5,3127.4,0.15983]
[1764880406429,0.8374705,3127.5,3127.4,0.16274465]
[1764880406824,2.2771705,3127.5,3127.4,0.16274465]
[1764880407025,3.7013705,3127.5,3127.4,0.16274465]
[1764880407226,3.7013705,3127.5,3127.4,0.00291465]
[1764880408529,2.2771705,3127.5,3127.4,0.00291465]
[1764880408730,3.7013705,3127.5,3127.4,0.16274465]
[1764880409032,3.7013705,3127.5,3127.4,0.00291465]
[1764880409235,3.6989,3127.0,3126.9,3.2078]
[1764880409634,3.6989,3126.5,3126.4,3.2078]
[1764880409836,2.2747,3126.5,3126.4,4.6072]
[1764880410037,1.4397,3126.5,3126.4,4.6072]
[1764880410232,1.4397,3126.5,3126.4,4.61024218]
[1764880411038,2.8639,3126.5,3126.4,4.61024218]
[1764880412037,1.4397,3126.5,3126.4,6.01564218]
[1764880412238,0.00477812,3126.8,3126.4,6.17552218]
[1764880412434,1.44447812,3126.8,3126.7,1.3994]
[1764880412638,2.86867812,3126.8,3126.5,0.15987]
[1764880413132,0.00477812,3126.8,3126.7,2.8048]
[1764880413638,1.44447812,3126.8,3126.7,2.96466]
[1764880413938,2.86867812,3126.8,3126.7,0.15986]
[1764880414637,3.7501,3126.5,3126.4,3.21084218]
[1764880415639,13.55857812,3126.8,3126.4,6.09002218]
[1764880415941,3.21257812,3126.8,3126.4,6.09002218]
[1764880416939,3.21257812,3126.8,3126.7,2.7193]
[1764880417538,4.53167812,3126.8,3126.7,2.7193]
[1764880418242,5.85567812,3126.8,3126.7,1.47946]
[1764880418440,5.85567812,3126.8,3126.7,0.15986]
[1764880418644,3.6295,3126.5,3126.4,3.21084218]
[1764880419855,3.6295,3126.5,3126.4,0.00304218]
[1764880421944,1.32387812,3126.8,3126.7,1.3196]
[1764880422150,0.00477812,3126.8,3126.7,2.87916]
[1764880424446,1.32387812,3126.8,3126.7,2.87916]
[1764880425249,0.00477812,3126.8,3126.7,2.87916]
[1764880425846,3.32277812,3126.8,3126.7,0.15986]
[1764880426250,3.2078,3127.3,3126.7,3.52946]
[1764880426947,3.318,3126.8,3126.7,0.15986]
[1764880427153,1.6372,3126.8,3126.7,3.52946]
[1764880427450,4.2673,3127.0,3126.9,1.6994]
[1764880428356,3.318,3126.8,3126.7,3.52946]
[1764880429046,3.318,3126.8,3126.7,1.85926]
[1764880429246,1.6372,3126.8,3126.7,3.52946]
[1764880429449,1.6372,3127.0,3126.9,3.52945]
[1764880429750,3.2078,3127.3,3127.2,3.52944]
[1764880431752,6.5258,3127.3,3127.2,0.15984]
[1764880431954,3.318,3126.8,3126.7,1.85926]
[1764880433247,1.6372,3126.8,3126.7,3.52946]
[1764880433852,3.318,3126.8,3126.7,0.15986]
[1764880439767,4.2673,3126.5,3126.4,5.49816587]
[1764880440064,4.2673,3126.5,3126.4,3.21084218]
[1764880440365,4.2673,3126.5,3126.2,2.28732369]
[1764880440565,3.318,3126.2,3126.1,0.00479639]
[1764880440762,3.318,3125.4,3125.3,5.65692369]
[1764880441257,41.7493,3126.0,3125.8,0.15991]
[1764880441461,0.9493,3126.0,3125.9,3.3696]
[1764880441667,3.318,3125.9,3125.8,1.86278804]
[1764880441968,3.318,3125.9,3125.8,3.53298804]
[1764880442162,3.318,3125.9,3125.8,1.86278804]
[1764880442470,3.318,3125.9,3125.8,3.53298804]
[1764880443469,3.318,3125.9,3125.8,0.16338804]
[1764880444172,3.318,3125.9,3125.8,3.55078804]
[1764880444670,3.318,3125.9,3125.8,1.86278804]
[1764880444864,3.318,3125.9,3125.8,0.16338804]
[1764880445168,3.2162,3125.7,3125.6,0.00479639]
[1764880445570,15.9222,3125.7,3125.6,1.74949639]
[1764880445767,15.9222,3125.7,3125.6,0.00479639]
[1764880446172,15.9222,3125.7,3125.6,0.00843958]
[1764880448575,0.9063,3125.0,3124.6,2.45497711]
[1764880448772,3.2162,3124.7,3124.6,0.15997]
[1764880448981,3.2162,3124.7,3124.6,1.90467]
[1764880449174,3.2162,3124.7,3124.6,0.15997]